[Event "*** Titled Tuesday Blitz"]
[Site "Chess.com"]
[Date "2021.04.06"]
[Round "5"]
[White "YumiBear"]
[Black "KubaGepard"]
[Result "0-1"]
[WhiteElo "2523"]
[BlackElo "2394"]
[TimeControl "180+1"]
[EndTime "10:55:41 PDT"]
[Termination "KubaGepard won by resignation"]

1. d4 {[%clk 0:03:00.9]} 1... d5 {[%clk 0:02:59.7]} 2. Nf3 {[%clk 0:03:00.5]}
2... Nf6 {[%clk 0:03:00.1]} 3. g3 {[%clk 0:03:01]} 3... b5 {[%clk 0:02:59.4]} 4.
Bg2 {[%clk 0:03:00.5]} 4... e6 {[%clk 0:03:00]} 5. O-O {[%clk 0:03:00]} 5...
Nbd7 {[%clk 0:03:00.5]} 6. a4 {[%clk 0:03:00.4]} 6... b4 {[%clk 0:03:00.9]} 7.
c4 {[%clk 0:03:00.9]} 7... bxc3 {[%clk 0:03:01.8]} 8. Nxc3 {[%clk 0:03:01.3]}
8... Ba6 {[%clk 0:03:01]} 9. Bf4 {[%clk 0:03:01]} 9... c6 {[%clk 0:03:00.3]} 10.
Re1 {[%clk 0:02:55]} 10... Bb4 {[%clk 0:03:00.3]} 11. Ne5 {[%clk 0:02:35]} 11...
Nxe5 {[%clk 0:02:59.5]} 12. Bxe5 {[%clk 0:02:35.3]} 12... O-O {[%clk 0:02:55.8]}
13. Rc1 {[%clk 0:02:34.8]} 13... Nd7 {[%clk 0:02:54.8]} 14. Bf4 {[%clk 0:02:33]}
14... Rc8 {[%clk 0:02:52.8]} 15. e4 {[%clk 0:02:23.9]} 15... Nb6 {[%clk
0:02:48.1]} 16. Qh5 {[%clk 0:02:15.9]} 16... Qf6 {[%clk 0:02:43.5]} 17. h4
{[%clk 0:01:32]} 17... Qg6 {[%clk 0:02:39.8]} 18. Qf3 {[%clk 0:01:31.3]} 18...
dxe4 {[%clk 0:02:33.6]} 19. Nxe4 {[%clk 0:01:09.1]} 19... Bxe1 {[%clk 0:02:24]}
20. h5 {[%clk 0:01:07.9]} 20... Qf5 {[%clk 0:02:17.3]} 21. Nd6 {[%clk
0:00:50.4]} 21... Qa5 {[%clk 0:02:07.6]} 22. Nxc8 {[%clk 0:00:50.4]} 22... Rxc8
{[%clk 0:02:06.7]} 23. h6 {[%clk 0:00:49]} 23... g6 {[%clk 0:02:00.8]} 24. Be5
{[%clk 0:00:30.1]} 24... Nd7 {[%clk 0:01:58]} 25. Rxc6 {[%clk 0:00:29.7]} 25...
Nxe5 {[%clk 0:01:41.7]} 26. Qf6 {[%clk 0:00:16.2]} 26... Bxf2+ {[%clk
0:01:41.4]} 27. Kh2 {[%clk 0:00:16.6]} 27... Ng4+ {[%clk 0:01:40.6]} 0-1

[Event "*** Titled Tuesday Blitz"]
[Site "Chess.com"]
[Date "2021.04.06"]
[Round "5"]
[White "friesnielsen2302"]
[Black "SargissyanSargis"]
[Result "0-1"]
[WhiteElo "2522"]
[BlackElo "2385"]
[TimeControl "180+1"]
[EndTime "10:55:42 PDT"]
[Termination "SargissyanSargis won by resignation"]

1. d4 {[%clk 0:03:00]} 1... Nf6 {[%clk 0:02:59.6]} 2. Nc3 {[%clk 0:03:00]} 2...
d5 {[%clk 0:02:58.5]} 3. Bf4 {[%clk 0:02:58.5]} 3... a6 {[%clk 0:02:57.6]} 4. e3
{[%clk 0:02:57.4]} 4... e6 {[%clk 0:02:56.2]} 5. g4 {[%clk 0:02:57.2]} 5... c5
{[%clk 0:02:38.6]} 6. g5 {[%clk 0:02:56.3]} 6... Nfd7 {[%clk 0:02:38.7]} 7. Nf3
{[%clk 0:02:55.2]} 7... Nc6 {[%clk 0:02:38]} 8. a3 {[%clk 0:02:54.8]} 8... b5
{[%clk 0:02:30.7]} 9. h4 {[%clk 0:02:54.5]} 9... Nb6 {[%clk 0:02:25.3]} 10. Rg1
{[%clk 0:02:53.6]} 10... Nc4 {[%clk 0:02:23.5]} 11. Rb1 {[%clk 0:02:51.6]} 11...
Bd6 {[%clk 0:02:20.9]} 12. Ne2 {[%clk 0:02:47.4]} 12... Qa5+ {[%clk 0:02:04.9]}
13. c3 {[%clk 0:02:45.9]} 13... Bxf4 {[%clk 0:01:59.5]} 14. Nxf4 {[%clk
0:02:45.6]} 14... b4 {[%clk 0:01:55]} 15. dxc5 {[%clk 0:02:40.8]} 15... bxc3
{[%clk 0:01:41.3]} 16. b4 {[%clk 0:02:40.3]} 16... Qxa3 {[%clk 0:01:41]} 17.
Bxc4 {[%clk 0:02:35.5]} 17... dxc4 {[%clk 0:01:27.4]} 18. Qd6 {[%clk 0:02:30.1]}
18... Bd7 {[%clk 0:01:11.5]} 19. Rd1 {[%clk 0:02:22.9]} 19... O-O-O {[%clk
0:01:07.3]} 20. Ne2 {[%clk 0:02:12]} 20... Be8 {[%clk 0:00:53.3]} 21. Qf4 {[%clk
0:01:49.5]} 21... Rxd1+ {[%clk 0:00:50.6]} 22. Kxd1 {[%clk 0:01:49.7]} 22... c2+
{[%clk 0:00:42.7]} 23. Kd2 {[%clk 0:01:46.3]} 23... Qd3+ {[%clk 0:00:40.3]} 24.
Kc1 {[%clk 0:01:46.4]} 24... Nxb4 {[%clk 0:00:34.7]} 25. Ned4 {[%clk 0:01:35.7]}
25... Qc3 {[%clk 0:00:23.5]} 0-1

[Event "*** Titled Tuesday Blitz"]
[Site "Chess.com"]
[Date "2021.04.06"]
[Round "5"]
[White "NoGuru"]
[Black "suneebaker"]
[Result "1-0"]
[WhiteElo "2330"]
[BlackElo "2119"]
[TimeControl "180+1"]
[EndTime "10:55:47 PDT"]
[Termination "NoGuru won by resignation"]

1. Nf3 {[%clk 0:03:00.9]} 1... e6 {[%clk 0:02:58.3]} 2. c4 {[%clk 0:03:00.5]}
2... f5 {[%clk 0:02:58.1]} 3. g3 {[%clk 0:02:59.3]} 3... Nf6 {[%clk 0:02:57.9]}
4. Bg2 {[%clk 0:02:59.6]} 4... Be7 {[%clk 0:02:58]} 5. O-O {[%clk 0:02:59.5]}
5... O-O {[%clk 0:02:58]} 6. b3 {[%clk 0:02:59.2]} 6... d6 {[%clk 0:02:57.7]} 7.
d4 {[%clk 0:02:57.9]} 7... a5 {[%clk 0:02:54.9]} 8. Bb2 {[%clk 0:02:56.8]} 8...
Nc6 {[%clk 0:02:52.4]} 9. Re1 {[%clk 0:02:54.7]} 9... Ne4 {[%clk 0:02:50.6]} 10.
Nfd2 {[%clk 0:02:52.5]} 10... d5 {[%clk 0:02:48.3]} 11. Nxe4 {[%clk 0:02:42.6]}
11... fxe4 {[%clk 0:02:47.3]} 12. f3 {[%clk 0:02:43]} 12... exf3 {[%clk
0:02:40]} 13. exf3 {[%clk 0:02:43.2]} 13... Bf6 {[%clk 0:02:38.1]} 14. c5 {[%clk
0:02:37.4]} 14... a4 {[%clk 0:02:26]} 15. f4 {[%clk 0:02:34.3]} 15... a3 {[%clk
0:02:18.1]} 16. Bc3 {[%clk 0:02:32.4]} 16... b5 {[%clk 0:02:14.7]} 17. cxb6
{[%clk 0:02:30.6]} 17... cxb6 {[%clk 0:02:13.5]} 18. Qd2 {[%clk 0:02:22.8]}
18... b5 {[%clk 0:02:11.7]} 19. b4 {[%clk 0:02:21.4]} 19... Qb6 {[%clk
0:02:09.4]} 20. Rd1 {[%clk 0:02:17.4]} 20... Bd7 {[%clk 0:02:04.1]} 21. Qe3
{[%clk 0:01:56.8]} 21... Kh8 {[%clk 0:02:00]} 22. Rd3 {[%clk 0:01:55.8]} 22...
Ne7 {[%clk 0:01:49]} 23. Nd2 {[%clk 0:01:50.9]} 23... Nf5 {[%clk 0:01:48.3]} 24.
Qf2 {[%clk 0:01:50.9]} 24... Rac8 {[%clk 0:01:40.5]} 25. Nf3 {[%clk 0:01:49]}
25... Rxc3 {[%clk 0:01:38]} 26. Rxc3 {[%clk 0:01:48.8]} 26... Bxd4 {[%clk
0:01:24.6]} 27. Nxd4 {[%clk 0:01:47.9]} 27... Qxd4 {[%clk 0:01:24.1]} 28. Qxd4
{[%clk 0:01:42.6]} 28... Nxd4 {[%clk 0:01:23.9]} 29. Bf1 {[%clk 0:01:32.1]}
29... Ra8 {[%clk 0:01:15.3]} 30. Rac1 {[%clk 0:01:26.6]} 30... h5 {[%clk
0:01:09.9]} 31. Rc7 {[%clk 0:01:26]} 31... Rd8 {[%clk 0:01:04.7]} 32. Bd3 {[%clk
0:01:19.5]} 32... h4 {[%clk 0:00:51.9]} 33. Rxd7 {[%clk 0:01:13.3]} 1-0

[Event "*** Titled Tuesday Blitz"]
[Site "Chess.com"]
[Date "2021.04.06"]
[Round "5"]
[White "Magila31"]
[Black "elvidirris"]
[Result "1-0"]
[WhiteElo "2316"]
[BlackElo "2041"]
[TimeControl "180+1"]
[EndTime "10:55:51 PDT"]
[Termination "Magila31 won by resignation"]

1. d4 {[%clk 0:02:59]} 1... Nf6 {[%clk 0:02:58.8]} 2. c4 {[%clk 0:02:58.4]} 2...
g6 {[%clk 0:02:58]} 3. Nc3 {[%clk 0:02:57.7]} 3... d5 {[%clk 0:02:54.4]} 4. Nf3
{[%clk 0:02:52.7]} 4... Bg7 {[%clk 0:02:53.2]} 5. Bg5 {[%clk 0:02:52.3]} 5...
Ne4 {[%clk 0:02:51.6]} 6. Bh4 {[%clk 0:02:48.7]} 6... Nxc3 {[%clk 0:02:47.2]} 7.
bxc3 {[%clk 0:02:47.9]} 7... dxc4 {[%clk 0:02:43.3]} 8. e3 {[%clk 0:02:47.2]}
8... Be6 {[%clk 0:02:34.3]} 9. Qb1 {[%clk 0:02:37.5]} 9... O-O {[%clk
0:02:21.3]} 10. Qxb7 {[%clk 0:02:29]} 10... Bd5 {[%clk 0:02:18.7]} 11. Qb4
{[%clk 0:02:28]} 11... Nc6 {[%clk 0:02:00.1]} 12. Qc5 {[%clk 0:02:27.5]} 12...
Qd6 {[%clk 0:01:30.8]} 13. Qxd6 {[%clk 0:02:26.7]} 13... exd6 {[%clk 0:01:28.4]}
14. Nd2 {[%clk 0:02:26.6]} 14... Na5 {[%clk 0:01:06.9]} 15. Be2 {[%clk
0:02:26.1]} 15... c5 {[%clk 0:01:05.7]} 16. O-O {[%clk 0:02:20.2]} 16... Rfe8
{[%clk 0:01:03.4]} 17. Bf3 {[%clk 0:02:14.2]} 17... Bxf3 {[%clk 0:00:56.9]} 18.
Nxf3 {[%clk 0:02:14.2]} 18... cxd4 {[%clk 0:00:55.3]} 19. exd4 {[%clk
0:02:13.8]} 19... Rab8 {[%clk 0:00:40]} 20. Rab1 {[%clk 0:02:05.1]} 20... Rb6
{[%clk 0:00:31.7]} 21. Rxb6 {[%clk 0:02:00]} 21... axb6 {[%clk 0:00:32.6]} 22.
Rb1 {[%clk 0:02:00.1]} 22... Rb8 {[%clk 0:00:29.2]} 23. Bg3 {[%clk 0:01:54.2]}
23... Bf8 {[%clk 0:00:26.4]} 24. d5 {[%clk 0:01:54.4]} 24... b5 {[%clk 0:00:22]}
25. Nd4 {[%clk 0:01:54.5]} 25... b4 {[%clk 0:00:17]} 26. Rxb4 {[%clk 0:01:50.6]}
26... Rxb4 {[%clk 0:00:15.7]} 27. cxb4 {[%clk 0:01:50.7]} 27... Nb7 {[%clk
0:00:14.8]} 28. a4 {[%clk 0:01:49.3]} 28... c3 {[%clk 0:00:13.5]} 29. a5 {[%clk
0:01:47.8]} 29... Nd8 {[%clk 0:00:11.2]} 30. a6 {[%clk 0:01:44.3]} 30... Bg7
{[%clk 0:00:10.8]} 31. Nc2 {[%clk 0:01:44.1]} 1-0

[Event "*** Titled Tuesday Blitz"]
[Site "Chess.com"]
[Date "2021.04.06"]
[Round "5"]
[White "j2806"]
[Black "Romadk"]
[Result "0-1"]
[WhiteElo "2148"]
[BlackElo "2345"]
[TimeControl "180+1"]
[EndTime "10:55:57 PDT"]
[Termination "Romadk won by resignation"]

1. e4 {[%clk 0:03:00.9]} 1... c5 {[%clk 0:02:59.7]} 2. Nf3 {[%clk 0:03:00.9]}
2... d6 {[%clk 0:02:59.6]} 3. d4 {[%clk 0:03:01.3]} 3... cxd4 {[%clk 0:03:00.5]}
4. Nxd4 {[%clk 0:03:01]} 4... Nf6 {[%clk 0:03:01.4]} 5. Nc3 {[%clk 0:02:54.4]}
5... Nc6 {[%clk 0:03:00.6]} 6. Be3 {[%clk 0:02:47.6]} 6... Ng4 {[%clk 0:03:00]}
7. Nxc6 {[%clk 0:02:30.8]} 7... bxc6 {[%clk 0:03:00.9]} 8. Bc1 {[%clk
0:02:29.4]} 8... Qb6 {[%clk 0:03:00.6]} 9. Qe2 {[%clk 0:02:22.6]} 9... g6 {[%clk
0:02:58.5]} 10. h3 {[%clk 0:02:21.3]} 10... Ne5 {[%clk 0:02:58.1]} 11. f4 {[%clk
0:02:13.8]} 11... Nd7 {[%clk 0:02:57.7]} 12. Qd2 {[%clk 0:02:12.6]} 12... Bh6
{[%clk 0:02:53.5]} 13. Bd3 {[%clk 0:02:10.8]} 13... e5 {[%clk 0:02:43.4]} 14.
Ne2 {[%clk 0:01:57.7]} 14... O-O {[%clk 0:02:32.2]} 15. Qe3 {[%clk 0:01:47.8]}
15... Rb8 {[%clk 0:02:22.5]} 16. Qxb6 {[%clk 0:01:45.5]} 16... Rxb6 {[%clk
0:02:23.4]} 17. b3 {[%clk 0:01:33.4]} 17... f5 {[%clk 0:02:14.5]} 18. Bc4+
{[%clk 0:01:24.8]} 18... Kh8 {[%clk 0:02:10.2]} 19. exf5 {[%clk 0:01:24.3]}
19... Rxf5 {[%clk 0:02:07.9]} 20. O-O {[%clk 0:01:10.3]} 20... d5 {[%clk
0:02:04.7]} 21. fxe5 {[%clk 0:01:05.1]} 21... Rxf1+ {[%clk 0:02:03]} 22. Kxf1
{[%clk 0:01:02.5]} 22... Bxc1 {[%clk 0:02:01.5]} 23. Bxd5 {[%clk 0:00:49.7]}
23... Bb2 {[%clk 0:01:51.4]} 24. Rb1 {[%clk 0:00:47.8]} 24... Bxe5 {[%clk
0:01:49.9]} 25. Bf3 {[%clk 0:00:44]} 25... Nc5 {[%clk 0:01:43.7]} 26. Rd1 {[%clk
0:00:38]} 26... Bf5 {[%clk 0:01:37]} 27. Nd4 {[%clk 0:00:31.4]} 27... Bxd4
{[%clk 0:01:12.6]} 28. Rxd4 {[%clk 0:00:30.9]} 28... Bxc2 {[%clk 0:01:10.5]} 0-1

[Event "*** Titled Tuesday Blitz"]
[Site "Chess.com"]
[Date "2021.04.06"]
[Round "5"]
[White "Sanan_Sjugirov"]
[Black "Hikaru"]
[Result "0-1"]
[WhiteElo "2864"]
[BlackElo "3228"]
[TimeControl "180+1"]
[EndTime "10:55:58 PDT"]
[Termination "Hikaru won by resignation"]

1. e4 {[%clk 0:03:00.9]} 1... g6 {[%clk 0:02:55.9]} 2. d4 {[%clk 0:03:00.6]}
2... Bg7 {[%clk 0:02:56.5]} 3. Nc3 {[%clk 0:02:57.7]} 3... c6 {[%clk 0:02:54.7]}
4. f4 {[%clk 0:02:54]} 4... d5 {[%clk 0:02:54.8]} 5. e5 {[%clk 0:02:53.9]} 5...
h5 {[%clk 0:02:54.7]} 6. Nf3 {[%clk 0:02:53.4]} 6... Bg4 {[%clk 0:02:54.3]} 7.
Be3 {[%clk 0:02:50.7]} 7... Nh6 {[%clk 0:02:53.9]} 8. Bd3 {[%clk 0:02:25.1]}
8... Nf5 {[%clk 0:02:54.8]} 9. Bf2 {[%clk 0:02:25.3]} 9... e6 {[%clk 0:02:54.3]}
10. h3 {[%clk 0:02:19.1]} 10... Bxf3 {[%clk 0:02:54.5]} 11. Qxf3 {[%clk
0:02:20]} 11... h4 {[%clk 0:02:55.2]} 12. O-O {[%clk 0:02:15]} 12... Nd7 {[%clk
0:02:54.8]} 13. Ne2 {[%clk 0:02:00.3]} 13... Bf8 {[%clk 0:02:54]} 14. b3 {[%clk
0:01:52.1]} 14... Be7 {[%clk 0:02:41.9]} 15. c4 {[%clk 0:01:51.8]} 15... Kf8
{[%clk 0:02:41.9]} 16. a4 {[%clk 0:01:45.5]} 16... Kg7 {[%clk 0:02:40.8]} 17. a5
{[%clk 0:01:44.2]} 17... a6 {[%clk 0:02:33.3]} 18. Kh2 {[%clk 0:01:27.4]} 18...
Rc8 {[%clk 0:02:29.4]} 19. c5 {[%clk 0:01:18.1]} 19... Qc7 {[%clk 0:02:26.7]}
20. Ng1 {[%clk 0:01:14.8]} 20... Rcg8 {[%clk 0:02:26.8]} 21. Qe2 {[%clk
0:01:07.6]} 21... Kf8 {[%clk 0:02:27]} 22. Nf3 {[%clk 0:01:06.7]} 22... Ke8
{[%clk 0:02:27.5]} 23. b4 {[%clk 0:01:05.6]} 23... Kd8 {[%clk 0:02:26]} 24. Bxf5
{[%clk 0:00:53]} 24... exf5 {[%clk 0:02:19.9]} 25. Qe1 {[%clk 0:00:50.6]} 25...
Nf8 {[%clk 0:02:20.1]} 26. Bxh4 {[%clk 0:00:24.1]} 26... Bxh4 {[%clk 0:02:18.1]}
27. Nxh4 {[%clk 0:00:25]} 27... Ne6 {[%clk 0:02:18.8]} 28. Nf3 {[%clk 0:00:25]}
28... Nxf4 {[%clk 0:02:18.1]} 29. Ng5 {[%clk 0:00:25.1]} 29... Ne6 {[%clk
0:02:17]} 30. Nxe6+ {[%clk 0:00:24.2]} 30... fxe6 {[%clk 0:02:17.9]} 31. Ra3
{[%clk 0:00:20.2]} 31... g5 {[%clk 0:02:18.1]} 32. Kg1 {[%clk 0:00:19.9]} 32...
Qh7 {[%clk 0:02:14.4]} 33. Rg3 {[%clk 0:00:16.2]} 33... Qh4 {[%clk 0:02:11.6]}
34. Rd3 {[%clk 0:00:12.1]} 34... Qh6 {[%clk 0:02:11.3]} 35. Qd2 {[%clk
0:00:07.9]} 35... Qh5 {[%clk 0:02:10.8]} 36. Qd1 {[%clk 0:00:07.7]} 36... g4
{[%clk 0:02:10.8]} 37. Rg3 {[%clk 0:00:01.6]} 37... Kc8 {[%clk 0:02:01.6]} 38.
Kh2 {[%clk 0:00:02]} 38... Qh6 {[%clk 0:01:57.1]} 39. Qd2 {[%clk 0:00:02.3]}
39... Qxd2 {[%clk 0:01:57]} 0-1

[Event "*** Titled Tuesday Blitz"]
[Site "Chess.com"]
[Date "2021.04.06"]
[Round "5"]
[White "Horizonevent"]
[Black "yandry1996"]
[Result "1-0"]
[WhiteElo "2502"]
[BlackElo "2251"]
[TimeControl "180+1"]
[EndTime "10:55:59 PDT"]
[Termination "Horizonevent won by resignation"]

1. d4 {[%clk 0:03:00.9]} 1... d5 {[%clk 0:02:57.6]} 2. c4 {[%clk 0:03:01]} 2...
e6 {[%clk 0:02:57.5]} 3. Nc3 {[%clk 0:03:00.5]} 3... c6 {[%clk 0:02:57.8]} 4. e3
{[%clk 0:02:57]} 4... Nf6 {[%clk 0:02:56.7]} 5. Nf3 {[%clk 0:02:57.5]} 5... Bd6
{[%clk 0:02:55.3]} 6. Qc2 {[%clk 0:02:56.2]} 6... O-O {[%clk 0:02:55.4]} 7. e4
{[%clk 0:02:45.5]} 7... dxe4 {[%clk 0:02:54.6]} 8. Nxe4 {[%clk 0:02:45.5]} 8...
Nxe4 {[%clk 0:02:54.2]} 9. Qxe4 {[%clk 0:02:46.4]} 9... Nd7 {[%clk 0:02:52.2]}
10. Bd3 {[%clk 0:02:46.2]} 10... Nf6 {[%clk 0:02:52.1]} 11. Qh4 {[%clk
0:02:46.4]} 11... Re8 {[%clk 0:02:36.9]} 12. Bg5 {[%clk 0:02:35.1]} 12... Qa5+
{[%clk 0:02:25.4]} 13. Kf1 {[%clk 0:02:27.3]} 13... Be7 {[%clk 0:00:37]} 14.
Bxf6 {[%clk 0:02:23.6]} 14... Bxf6 {[%clk 0:00:37.9]} 15. Qxh7+ {[%clk
0:02:23.4]} 15... Kf8 {[%clk 0:00:38.5]} 16. h4 {[%clk 0:02:05]} 16... e5 {[%clk
0:00:31.9]} 17. dxe5 {[%clk 0:01:59.4]} 17... Bxe5 {[%clk 0:00:31.9]} 18. Re1
{[%clk 0:01:56.1]} 18... Bg4 {[%clk 0:00:09.1]} 19. Qh8+ {[%clk 0:01:25.6]}
19... Ke7 {[%clk 0:00:08.8]} 20. Rxe5+ {[%clk 0:01:25.8]} 20... Qxe5 {[%clk
0:00:08.1]} 21. Qxe8+ {[%clk 0:01:25.8]} 21... Kxe8 {[%clk 0:00:03.8]} 22. Nxe5
{[%clk 0:01:26]} 22... Be6 {[%clk 0:00:04.1]} 23. f4 {[%clk 0:01:24.8]} 23...
Rd8 {[%clk 0:00:04.5]} 24. Ke2 {[%clk 0:01:24.5]} 24... f6 {[%clk 0:00:03.6]}
25. Nf3 {[%clk 0:01:24.8]} 25... Bg4 {[%clk 0:00:03.3]} 26. h5 {[%clk
0:01:24.9]} 1-0

[Event "*** Titled Tuesday Blitz"]
[Site "Chess.com"]
[Date "2021.04.06"]
[Round "5"]
[White "FMalexhdez"]
[Black "bushrashuaibi"]
[Result "1-0"]
[WhiteElo "2178"]
[BlackElo "1858"]
[TimeControl "180+1"]
[EndTime "10:56:01 PDT"]
[Termination "FMalexhdez won by resignation"]

1. e4 {[%clk 0:03:00.9]} 1... c5 {[%clk 0:02:58.4]} 2. Nf3 {[%clk 0:03:00.9]}
2... Nc6 {[%clk 0:02:57.6]} 3. d4 {[%clk 0:03:01.6]} 3... cxd4 {[%clk
0:02:58.5]} 4. Nxd4 {[%clk 0:03:01.8]} 4... Nf6 {[%clk 0:02:57.6]} 5. Nc3 {[%clk
0:03:01.8]} 5... e5 {[%clk 0:02:58.1]} 6. Ndb5 {[%clk 0:03:01.2]} 6... d6 {[%clk
0:02:58.1]} 7. Bg5 {[%clk 0:03:00]} 7... a6 {[%clk 0:02:58.4]} 8. Na3 {[%clk
0:03:00.1]} 8... b5 {[%clk 0:02:58.4]} 9. Nd5 {[%clk 0:02:57.6]} 9... Be7 {[%clk
0:02:58.4]} 10. Bxf6 {[%clk 0:02:57.6]} 10... Bxf6 {[%clk 0:02:59.3]} 11. c3
{[%clk 0:02:53.7]} 11... O-O {[%clk 0:02:52]} 12. Nc2 {[%clk 0:02:53.9]} 12...
Rb8 {[%clk 0:02:51.8]} 13. h4 {[%clk 0:02:47.6]} 13... Be6 {[%clk 0:02:23.1]}
14. g3 {[%clk 0:02:41.7]} 14... Qd7 {[%clk 0:02:12.3]} 15. Bg2 {[%clk 0:02:39]}
15... Bd8 {[%clk 0:02:11.7]} 16. O-O {[%clk 0:02:37.4]} 16... a5 {[%clk
0:02:05.8]} 17. Nce3 {[%clk 0:02:31.8]} 17... g6 {[%clk 0:01:48.2]} 18. h5
{[%clk 0:02:30.3]} 18... f5 {[%clk 0:01:30.1]} 19. exf5 {[%clk 0:02:24.2]} 19...
gxf5 {[%clk 0:01:31]} 20. f4 {[%clk 0:02:19]} 20... b4 {[%clk 0:01:07.2]} 21.
Kh2 {[%clk 0:02:00.4]} 21... bxc3 {[%clk 0:01:06.5]} 22. bxc3 {[%clk 0:01:58.5]}
22... Kh8 {[%clk 0:00:45.7]} 23. Rb1 {[%clk 0:01:54.2]} 23... Rxb1 {[%clk
0:00:35]} 24. Qxb1 {[%clk 0:01:54.1]} 24... e4 {[%clk 0:00:26.8]} 25. Rh1 {[%clk
0:01:49.3]} 25... Ne7 {[%clk 0:00:26.6]} 26. Qd1 {[%clk 0:01:42.8]} 26... Nxd5
{[%clk 0:00:26]} 27. Nxd5 {[%clk 0:01:41.9]} 27... Qb7 {[%clk 0:00:19.3]} 28.
Qd4+ {[%clk 0:01:38]} 28... Kg8 {[%clk 0:00:17]} 29. Rd1 {[%clk 0:01:34.4]}
29... Bf6 {[%clk 0:00:16.8]} 30. Nxf6+ {[%clk 0:01:33.3]} 30... Rxf6 {[%clk
0:00:16.2]} 31. Qxf6 {[%clk 0:01:32.2]} 31... Qf7 {[%clk 0:00:14.1]} 32. Qg5+
{[%clk 0:01:29.4]} 1-0

[Event "*** Titled Tuesday Blitz"]
[Site "Chess.com"]
[Date "2021.04.06"]
[Round "5"]
[White "ChessWarrior7197"]
[Black "Balla_Tamas"]
[Result "1-0"]
[WhiteElo "2908"]
[BlackElo "2550"]
[TimeControl "180+1"]
[EndTime "10:56:03 PDT"]
[Termination "ChessWarrior7197 won by resignation"]

1. e4 {[%clk 0:03:00.9]} 1... c5 {[%clk 0:02:59.3]} 2. Nf3 {[%clk 0:03:00.1]}
2... e6 {[%clk 0:02:58.9]} 3. g3 {[%clk 0:02:57.9]} 3... d5 {[%clk 0:02:56.7]}
4. exd5 {[%clk 0:02:57.8]} 4... Qxd5 {[%clk 0:02:56.2]} 5. Bg2 {[%clk
0:02:58.7]} 5... Nc6 {[%clk 0:02:56]} 6. O-O {[%clk 0:02:58.5]} 6... Qd7 {[%clk
0:02:53.2]} 7. b3 {[%clk 0:02:43.9]} 7... Nf6 {[%clk 0:02:48.7]} 8. Bb2 {[%clk
0:02:44.2]} 8... Be7 {[%clk 0:02:49.4]} 9. d4 {[%clk 0:02:45.1]} 9... cxd4
{[%clk 0:02:48.1]} 10. Nxd4 {[%clk 0:02:46]} 10... Nxd4 {[%clk 0:02:48.1]} 11.
Qxd4 {[%clk 0:02:46.5]} 11... Qc7 {[%clk 0:02:41.1]} 12. c4 {[%clk 0:02:44.9]}
12... Bd7 {[%clk 0:02:38.2]} 13. Nc3 {[%clk 0:02:44.8]} 13... a6 {[%clk
0:02:34.3]} 14. Rfe1 {[%clk 0:02:36.4]} 14... Rd8 {[%clk 0:02:16.4]} 15. Nd5
{[%clk 0:02:14.7]} 15... exd5 {[%clk 0:01:52.3]} 16. cxd5 {[%clk 0:02:14.7]}
16... Be6 {[%clk 0:01:30.5]} 17. Qa4+ {[%clk 0:02:13.5]} 17... b5 {[%clk
0:01:13.1]} 18. Qxa6 {[%clk 0:02:13.7]} 18... Nxd5 {[%clk 0:01:10.6]} 19. Bxg7
{[%clk 0:02:01.2]} 19... Rg8 {[%clk 0:01:06.9]} 20. Be5 {[%clk 0:01:58.1]} 20...
Qb6 {[%clk 0:00:28.3]} 21. Qxb6 {[%clk 0:01:49.5]} 21... Nxb6 {[%clk 0:00:29.2]}
22. Bc7 {[%clk 0:01:50.1]} 22... Rg4 {[%clk 0:00:25.4]} 23. Bxb6 {[%clk
0:01:48.9]} 23... Rc8 {[%clk 0:00:22.4]} 24. Bh3 {[%clk 0:01:44.9]} 24... Rg6
{[%clk 0:00:21.9]} 25. Bxe6 {[%clk 0:01:45.8]} 25... Rxe6 {[%clk 0:00:21]} 26.
Rxe6 {[%clk 0:01:45.6]} 26... fxe6 {[%clk 0:00:21.9]} 27. a4 {[%clk 0:01:46.5]}
27... bxa4 {[%clk 0:00:21.5]} 28. bxa4 {[%clk 0:01:47.4]} 28... Ra8 {[%clk
0:00:20.3]} 29. a5 {[%clk 0:01:47.8]} 29... Ra6 {[%clk 0:00:20.8]} 30. Re1
{[%clk 0:01:47.3]} 30... Kf7 {[%clk 0:00:20.3]} 31. Re4 {[%clk 0:01:47.7]} 31...
Bd6 {[%clk 0:00:18.7]} 32. Kf1 {[%clk 0:01:47.6]} 32... Ke7 {[%clk 0:00:18.3]}
33. Ke2 {[%clk 0:01:47.3]} 33... Kd7 {[%clk 0:00:18.3]} 34. Kd3 {[%clk
0:01:47.5]} 34... Bc7 {[%clk 0:00:18.7]} 35. Bxc7 {[%clk 0:01:43.4]} 35... Kxc7
{[%clk 0:00:18.5]} 36. Re5 {[%clk 0:01:44.3]} 36... Kd6 {[%clk 0:00:18.4]} 37.
Rh5 {[%clk 0:01:44.9]} 37... Rc6 {[%clk 0:00:18]} 38. Rxh7 {[%clk 0:01:44]}
38... Rc5 {[%clk 0:00:18.3]} 39. a6 {[%clk 0:01:44.2]} 39... Ra5 {[%clk
0:00:18.4]} 40. a7 {[%clk 0:01:45]} 1-0

[Event "*** Titled Tuesday Blitz"]
[Site "Chess.com"]
[Date "2021.04.06"]
[Round "5"]
[White "GM_LOADING"]
[Black "Smirnov_Pavel"]
[Result "0-1"]
[WhiteElo "2535"]
[BlackElo "2867"]
[TimeControl "180+1"]
[EndTime "10:56:03 PDT"]
[Termination "Smirnov_Pavel won by resignation"]

1. e4 {[%clk 0:02:53.1]} 1... e5 {[%clk 0:02:50.8]} 2. Nf3 {[%clk 0:02:52.7]}
2... Nc6 {[%clk 0:02:48.4]} 3. Bc4 {[%clk 0:02:53]} 3... Nf6 {[%clk 0:02:47.1]}
4. d3 {[%clk 0:02:52.2]} 4... Bc5 {[%clk 0:02:46.4]} 5. O-O {[%clk 0:02:51.8]}
5... O-O {[%clk 0:02:46.9]} 6. h3 {[%clk 0:02:49]} 6... h6 {[%clk 0:02:44.3]} 7.
Re1 {[%clk 0:02:47.6]} 7... d6 {[%clk 0:02:44.3]} 8. a4 {[%clk 0:02:46.4]} 8...
Be6 {[%clk 0:02:36.6]} 9. Nbd2 {[%clk 0:02:44.6]} 9... a6 {[%clk 0:02:34.5]} 10.
c3 {[%clk 0:02:44.1]} 10... a5 {[%clk 0:02:31.5]} 11. Bb5 {[%clk 0:02:21.6]}
11... Ne7 {[%clk 0:02:27.1]} 12. d4 {[%clk 0:02:17.9]} 12... exd4 {[%clk
0:02:28]} 13. cxd4 {[%clk 0:02:17.9]} 13... Bb4 {[%clk 0:02:27.8]} 14. Re2
{[%clk 0:01:53.5]} 14... d5 {[%clk 0:02:20.6]} 15. e5 {[%clk 0:01:50.8]} 15...
Nh5 {[%clk 0:02:18]} 16. Nf1 {[%clk 0:01:48.4]} 16... Ng6 {[%clk 0:02:17.9]} 17.
Ng3 {[%clk 0:01:28.4]} 17... Nhf4 {[%clk 0:02:17.3]} 18. Re1 {[%clk 0:01:17.8]}
18... f6 {[%clk 0:02:16.5]} 19. Bd2 {[%clk 0:00:30.9]} 19... Bxd2 {[%clk
0:02:07.5]} 20. Qxd2 {[%clk 0:00:31.8]} 20... fxe5 {[%clk 0:02:07.5]} 21. Nxe5
{[%clk 0:00:32.5]} 21... Qg5 {[%clk 0:02:06.4]} 22. Rad1 {[%clk 0:00:25.4]}
22... Nh4 {[%clk 0:02:04.5]} 23. Nd3 {[%clk 0:00:12.8]} 23... Nhxg2 {[%clk
0:01:43.5]} 24. Re5 {[%clk 0:00:03.8]} 24... Qf6 {[%clk 0:01:38.6]} 25. Nc5
{[%clk 0:00:01.9]} 25... Bxh3 {[%clk 0:01:35.8]} 26. Bd7 {[%clk 0:00:01.1]}
26... Nh4 {[%clk 0:01:32.6]} 27. Kh1 {[%clk 0:00:01.6]} 0-1